fUSD/lending_fUSD_20260401
["ID","MTS","AMOUNT","RATE_DAILY","PERIOD"]
[419258428,1775067044681,-500.0,0.00015788,2]
[419258429,1775067044690,-500.0,0.00015788,2]
[419258430,1775067044700,-500.0,0.00015788,2]
[419258431,1775067044710,-500.0,0.00015788,2]
[419258432,1775067044719,-500.0,0.00015788,2]
[419258433,1775067044729,-500.0,0.00015788,2]
[419258434,1775067044738,-500.0,0.00015788,2]
[419258435,1775067044748,-500.0,0.00015788,2]
[419258436,1775067044758,-500.0,0.00015788,2]
[419258437,1775067044768,-500.0,0.00015788,2]
[419258438,1775067044779,-500.0,0.00015788,2]
[419258439,1775067044788,-500.0,0.00015788,2]
[419258440,1775067044797,-524.17339372,0.00015788,2]
[419258441,1775067044808,-500.0,0.00015788,2]
[419258442,1775067044818,-500.0,0.00015788,2]
[419258443,1775067044828,-500.0,0.00015788,2]
[419258444,1775067044838,-250.0,0.00015788,2]
[419258445,1775067044848,-500.0,0.00015788,2]
[419258446,1775067044860,-250.0,0.00015788,2]
[419258447,1775067044870,-500.0,0.00015788,2]
[419258448,1775067044880,-250.0,0.00015788,2]
[419258449,1775067044891,-250.0,0.00015788,2]
[419258450,1775067044900,-250.0,0.00015788,2]
[419258451,1775067044910,-312.05867315,0.00015788,2]
[419258452,1775067044919,-743.50770149,0.00015788,2]
[419258453,1775067044931,-500.0,0.00015788,2]
[419258454,1775067044941,-151.0,0.00015788,2]
[419258455,1775067044951,-500.0,0.00015796,2]
[419258456,1775067044962,-500.0,0.00015796,2]
[419258457,1775067044971,-258.06957379,0.00015796,2]
[419258458,1775067044981,-157.09590853,0.00015796,2]
[419258459,1775067044991,-500.0,0.00015796,2]
[419258460,1775067045001,-390.59650748,0.00015796,2]
[419258461,1775067045010,-500.0,0.00015796,2]
[419258462,1775067045019,-500.0,0.00015796,2]
[419258463,1775067045029,-33852.44002842,0.00015797,2]
[419258464,1775067045149,-68199.99999998,0.00015797,2]
[419258468,1775067047697,-151.0,0.00012936,2]
[419258469,1775067047707,-574.0569,0.00015083,2]
[419258470,1775067047718,-5000.0,0.00015797,2]
[419258471,1775067047727,-459.440195,0.00015797,2]
[419258472,1775067047736,-459.440195,0.00015797,2]
[419258473,1775067047746,-459.440195,0.00015797,2]
[419258474,1775067047756,-459.440195,0.00015797,2]
[419258475,1775067047765,-151.0,0.00015797,2]
[419258476,1775067047774,-151.0,0.00015797,2]
[419258477,1775067047783,-151.0,0.00015797,2]
[419258478,1775067047793,-151.0,0.00015797,2]
[419258479,1775067047802,-765.47616054,0.00015797,2]
[419258480,1775067047812,-364.840767,0.00015797,2]
[419258481,1775067047821,-364.840767,0.00015797,2]
[419258482,1775067047831,-364.840767,0.00015797,2]
[419258483,1775067047840,-20.9538396,0.00015797,2]
[419258484,1775067047852,-343.8869274,0.00015797,2]
[419258485,1775067047862,-2375.12381116,0.000158,5]
[419258486,1775067047885,-807.52114712,0.000158,5]
[419258487,1775067047909,-680.42966627,0.000158,5]
[419258488,1775067047924,-36.92537545,0.000158,5]
[419258489,1775067047933,-1242.89462455,0.00015813,2]
[419258490,1775067047945,-379.61921595,0.00015813,2]
[419258491,1775067047954,-1622.5138405,0.00015842,2]
[419258492,1775067047963,-500.0,0.0001587,2]
[419258493,1775067047972,-200.0,0.0001587,2]
[419258494,1775067047982,-500.0,0.00015873,2]
[419258495,1775067047991,-500.0,0.00015873,2]
[419258496,1775067048000,-500.0,0.00015873,2]
[419258497,1775067048010,-500.0,0.00015873,2]
[419258498,1775067048019,-2000.0,0.0001589,2]
[419258499,1775067048028,-151.0,0.00015894,2]
[419258500,1775067048038,-500.0,0.00015896,2]
[419258501,1775067048047,-397.15767535,0.00015896,2]
[419258508,1775068057334,594.25,8.091e-05,2]
[419258524,1775068121056,284.22,7.623e-05,2]
[419258525,1775068121559,360.16,8.255e-05,2]
[419258530,1775068231466,-397.98,8.325e-05,2]
[419258531,1775068231478,-3187.94172512,8.371e-05,2]
[419258532,1775068231488,-250.0,8.418e-05,2]
[419258533,1775068231498,-600.0,8.512e-05,2]
[419258534,1775068231508,-179.49,8.713e-05,2]
[419258535,1775068231518,-785.62,8.948e-05,2]
[419258536,1775068231529,-670.98,8.959e-05,2]
[419258537,1775068231539,-166.31698668,8.983e-05,2]
[419258538,1775068231549,-334.08,8.983e-05,2]
[419258539,1775068231560,-250.0,9.157e-05,2]
[419258540,1775068231571,-250.0,9.157e-05,2]
[419258541,1775068231580,-5000.0,9.157e-05,2]
[419258542,1775068231590,-1200.0,9.265e-05,2]
[419258543,1775068231600,-460.61,9.266e-05,2]
[419258544,1775068231611,-300.0,9.361e-05,2]
[419258545,1775068231621,-300.0,9.361e-05,2]
[419258546,1775068231631,-300.0,9.361e-05,2]
[419258547,1775068231640,-300.0,9.361e-05,2]
[419258548,1775068231649,-1200.0,9.362e-05,2]
[419258549,1775068231659,-5046.19731,9.363e-05,2]
[419258550,1775068231668,-5000.0,9.363e-05,2]
[419258551,1775068231678,-150.0,9.5e-05,2]
[419258552,1775068231687,-500.0,9.835e-05,2]
[419258553,1775068231696,-500.0,9.835e-05,2]
[419258554,1775068231705,-987.32,9.851e-05,2]
[419258555,1775068231715,-203.42,9.986e-05,2]
[419258556,1775068231724,-1680.0,0.00010191,2]
[419258557,1775068231734,-300.0,0.00010297,2]
[419258559,1775068231745,-420.0,0.00010297,2]
[419258561,1775068231754,-420.0,0.00010297,2]
[419258562,1775068231764,-420.0,0.00010297,2]
[419258563,1775068231773,-192.0,0.00010298,2]
[419258564,1775068231782,-1000.0,0.00010383,2]
[419258566,1775068231792,-416.0,0.00010767,2]
[419258568,1775068231802,-192.0323,0.000109,7]
[419258569,1775068231811,-4493.0,0.00011,3]
[419258570,1775068231821,-2351.0,0.00011211,2]
[419258571,1775068231830,-5534.0,0.000113,5]
[419258572,1775068231840,-373.0,0.00011327,2]
[419258574,1775068231849,-300.0,0.00011327,2]
[419258576,1775068231865,-1500.0,0.00012274,2]
[419258578,1775068231875,-150.0,0.00012274,2]
[419258580,1775068231885,-245.8428,0.000123,12]
[419258582,1775068231895,-3292.0,0.00012332,2]
[419258584,1775068231904,-1010.0,0.00012358,2]
[419258586,1775068231914,-721.9,0.00012366,2]
[419258588,1775068231923,-500.0,0.00012817,2]
[419258590,1775068231933,-250.0,0.00013,2]
[419258591,1775068231942,-510.0,0.00013111,2]
[419258592,1775068231952,-255.0,0.00013366,2]
[419258593,1775068231962,-259.0,0.00013565,2]
[419258594,1775068231972,-314.7318,0.000137,17]
[419258595,1775068231982,-166.66,0.00014062,2]
[419258596,1775068231992,-164.12,0.00014219,2]
[419258597,1775068232001,-166.66,0.00014358,2]
[419258598,1775068232010,-166.66,0.00014654,2]
[419258599,1775068232020,-500.0,0.00014709,2]
[419258600,1775068232030,-584.6907632,0.00014709,2]
[419258601,1775068232039,-500.0,0.00014791,2]
[419258602,1775068232048,-500.0,0.00014791,2]
[419258603,1775068232058,-500.0,0.00014791,2]
[419258604,1775068232068,-500.0,0.00014791,2]
[419258605,1775068232079,-500.0,0.00014791,2]
[419258606,1775068232088,-500.0,0.00014791,2]
[419258607,1775068232099,-500.0,0.00014791,2]
[419258608,1775068232108,-151.0,0.00014791,2]
[419258609,1775068232117,-500.0,0.00014791,2]
[419258610,1775068232127,-151.0,0.00014791,2]
[419258611,1775068232137,-500.0,0.00014791,2]
[419258612,1775068232147,-151.0,0.00014791,2]
[419258613,1775068232156,-196.23998295,0.00014791,2]
[419258614,1775068232166,-151.0,0.00014791,2]
[419258615,1775068232176,-151.0,0.00014791,2]
[419258616,1775068232186,-151.0,0.00014791,2]
[419258617,1775068232196,-151.0,0.00014791,2]
[419258618,1775068232205,-151.0,0.00014791,2]
[419258619,1775068232215,-151.0,0.00014791,2]
[419258620,1775068232225,-151.0,0.00014791,2]
[419258621,1775068232235,-151.0,0.00014791,2]
[419258622,1775068232246,-151.0,0.00014791,2]
[419258623,1775068232256,-500.0,0.00014791,2]
[419258624,1775068232267,-2000.0,0.000148,2]
[419258625,1775068232278,-500.0,0.000148,2]
[419258626,1775068232288,-500.0,0.000148,2]
[419258627,1775068232299,-500.0,0.000148,2]
[419258628,1775068232308,-500.0,0.000148,2]
[419258629,1775068232319,-500.0,0.000148,2]
[419258630,1775068232329,-500.0,0.000148,2]
[419258631,1775068232339,-500.0,0.000148,2]
[419258632,1775068232350,-500.0,0.000148,2]
[419258633,1775068232361,-500.0,0.000148,2]
[419258634,1775068232376,-500.0,0.000148,2]
[419258635,1775068232387,-500.0,0.000148,2]
[419258636,1775068232398,-504.78099444,0.000148,2]
[419258637,1775068232409,-166.66,0.0001495,2]
[419258638,1775068232421,-8214.9089,0.00014983,2]
[419258639,1775068232432,-1000.0,0.00014983,2]
[419258640,1775068232443,-200.0,0.00015,2]
[419258641,1775068232453,-300.0,0.00015,2]
[419258642,1775068232463,-655.89509219,0.00015,2]
[419258643,1775068232475,-929.98126743,0.00015015,2]
[419258644,1775068232486,-500.0,0.00015065,2]
[419258645,1775068232497,-500.0,0.00015073,2]
[419258646,1775068232509,-500.0,0.00015073,2]
[419258647,1775068232519,-535.05,0.00015074,2]
[419258648,1775068232528,-151.0,0.0001508,2]
[419258649,1775068232538,-500.0,0.00015082,2]
[419258650,1775068232548,-380.64870165,0.00015082,2]
[419258651,1775068232560,-500.0,0.00015082,2]
[419258652,1775068232571,-495.21440739,0.00015082,2]
[419258653,1775068232581,-623.41755524,0.00015082,2]
[419258654,1775068232591,-1062.52406751,0.00015082,5]
[419258655,1775068232602,-500.0,0.00015082,2]
[419258656,1775068232614,-500.0,0.00015082,2]
[419258657,1775068232624,-402.9246,0.000151,22]
[419258658,1775068232635,-929.98126738,0.00015113,2]
[419258659,1775068232647,-280.98,0.00015115,2]
[419258660,1775068232656,-1600.0,0.00015115,2]
[419258661,1775068232666,-2000.0,0.00015115,2]
[419258662,1775068232676,-166.56,0.00015115,2]
[419258663,1775068232685,-200.0,0.00015115,2]
[419258664,1775068232695,-2011.53,0.00015115,2]
[419258665,1775068232705,-655.89509218,0.00015129,2]
[419258666,1775068232716,-200.0,0.0001516,2]
[419258667,1775068232729,-500.0,0.0001516,2]
[419258668,1775068232740,-500.0,0.0001516,2]
[419258669,1775068232750,-500.0,0.0001516,2]
[419258670,1775068232761,-500.0,0.0001516,2]
[419258671,1775068232771,-500.0,0.0001516,2]
[419258672,1775068232780,-500.0,0.0001516,2]
[419258673,1775068232790,-500.0,0.0001516,2]
[419258674,1775068232800,-500.0,0.0001516,2]
[419258675,1775068232810,-500.0,0.0001516,2]
[419258676,1775068232820,-151.0,0.0001516,2]
[419258677,1775068232830,-500.0,0.0001516,2]
[419258678,1775068232840,-500.0,0.0001516,2]
[419258679,1775068232850,-500.0,0.0001516,2]
[419258680,1775068232860,-500.0,0.0001516,2]
[419258681,1775068232872,-174.61919141,0.0001516,2]
[419258682,1775068232882,-743.50770149,0.0001516,2]
[419258683,1775068232892,-929.98126738,0.00015212,2]
[419258684,1775068232901,-500.0,0.00015215,2]
[419258685,1775068232911,-151.0,0.00015215,2]
[419258686,1775068232921,-166.66,0.00015246,2]
[419258687,1775068232931,-655.89509218,0.00015257,2]
[419258688,1775068232941,-500.0,0.0001527,2]
[419258689,1775068232951,-151.0,0.0001527,2]
[419258690,1775068232960,-900.0,0.000153,5]
[419258691,1775068232970,-929.98126738,0.0001531,2]
[419258692,1775068232980,-499.86680104,0.0001532,2]
[419258693,1775068232991,-500.0,0.00015325,2]
[419258694,1775068233001,-151.0,0.00015325,2]
[419258695,1775068233010,-500.0,0.00015339,2]
[419258696,1775068233020,-535.05,0.00015348,2]
[419258697,1775068233030,-500.0,0.0001538,2]
[419258698,1775068233040,-151.0,0.0001538,2]
[419258699,1775068233051,-655.89509218,0.00015386,2]
[419258700,1775068233061,-164.12,0.00015392,2]
[419258701,1775068233071,-1800.0,0.000154,5]
[419258702,1775068233083,-929.98126738,0.00015408,2]
[419258703,1775068233092,-500.0,0.00015435,2]
[419258704,1775068233103,-151.0,0.00015435,2]
[419258705,1775068233113,-472.736151,0.00015479,7]
[419258706,1775068233123,-195.619265,0.00015479,7]
[419258707,1775068233133,-500.0,0.0001549,2]
[419258708,1775068233143,-151.0,0.0001549,2]
[419258709,1775068233153,-2800.0,0.000155,5]
[419258710,1775068233164,-929.98126738,0.00015507,2]
[419258711,1775068233176,-2226.86,0.00015507,2]
[419258712,1775068233187,-655.89509218,0.00015514,2]
[419258713,1775068233197,-166.66,0.00015542,2]
[419258714,1775068233207,-500.0,0.00015545,2]
[419258715,1775068233216,-151.0,0.00015545,2]
[419258716,1775068233227,-3700.0,0.000156,5]
[419258717,1775068233237,-500.0,0.000156,2]
[419258718,1775068233246,-151.0,0.000156,2]
[419258719,1775068233256,-929.98126738,0.00015605,2]
[419258720,1775068233266,-500.0,0.00015621,2]
[419258721,1775068233275,-535.05,0.00015622,2]
[419258722,1775068233286,-655.89509218,0.00015643,2]
[419258723,1775068233295,-500.0,0.00015655,2]
[419258724,1775068233305,-151.0,0.00015655,2]
[419258725,1775068233315,-160.0,0.00015692,2]
[419258726,1775068233324,-656.12242332,0.00015695,2]
[419258727,1775068233335,-744.4650076,0.00015695,2]
[419258728,1775068233345,-202.28273714,0.00015695,2]
[419258729,1775068233355,-5000.0,0.00015695,2]
[419258730,1775068233364,-4600.0,0.000157,5]
[419258731,1775068233374,-929.98126738,0.00015703,2]
[419258732,1775068233384,-200.0,0.00015708,2]
[419258733,1775068233393,-181.08010149,0.00015708,2]
[419258734,1775068233403,-771.01748645,0.00015708,2]
[419258735,1775068233412,-500.0,0.0001571,2]
[419258736,1775068233422,-151.0,0.0001571,2]
[419258737,1775068233432,-500.0,0.00015765,2]
[419258738,1775068233441,-151.0,0.00015765,2]
[419258739,1775068233451,-655.89509218,0.00015771,2]
[419258740,1775068233462,-500.0,0.00015773,2]
[419258741,1775068233471,-500.0,0.00015773,2]
[419258742,1775068233481,-500.0,0.00015773,2]
[419258743,1775068233490,-500.0,0.00015773,2]
[419258744,1775068233500,-150.59,0.00015785,2]
[419258745,1775068233510,-150.59,0.00015785,2]
[419258746,1775068233519,-150.59,0.00015785,2]
[419258747,1775068233529,-509.57,0.00015785,2]
[419258748,1775068233548,-509.57,0.00015785,2]
[419258749,1775068233558,-1937.411,0.0001579,2]
[419258750,1775068233568,-173.313,0.0001579,2]
[419258751,1775068233578,-1062.52406751,0.00015794,5]
[419258752,1775068233588,-500.0,0.00015794,2]
[419258753,1775068233598,-500.0,0.00015794,2]
[419258754,1775068233608,-33301.13258217,0.00015795,2]
[419258755,1775068235187,-2226.30133217,0.00015795,2]
[419258756,1775068235200,-552.3873477,0.00015795,2]
[419258757,1775068235230,-1400.0,0.00015795,2]
[419258765,1775068237607,-408.54905294,0.00013111,2]
[419258766,1775068237663,-91.45094706,0.00013111,2]
[419258767,1775068237673,-15962.32989876,0.00015795,2]
[419258768,1775068237682,-57205.61086084,0.00015795,2]
[419258769,1775068237722,-367.39080155,0.00015795,2]
[419258770,1775068237735,-302.0,0.00015795,2]
[419258771,1775068237932,-2178.08138873,0.00015795,2]
[419258810,1775068239844,-3461.78540108,0.00015795,2]
[419258811,1775068240435,-217663.25658179,0.00015795,2]
[419258812,1775068240448,-554.73690739,0.00015795,2]
[419258813,1775068240493,-2301.03642912,0.00015795,2]
[419258822,1775068242665,-292.38636311,0.00015795,2]
[419258823,1775068242678,-501.35924143,0.00015795,2]
[419258824,1775068242773,-59394.75149479,0.00015795,2]
[419258829,1775068244711,421.28,8.032e-05,2]
[419258835,1775068246315,-600.0,8.351e-05,2]
[419258836,1775068246326,-675.92,0.00015795,2]
[419258837,1775068246339,-29143.80007657,0.00015795,2]
[419258838,1775068246348,-27312.48055164,0.00015795,2]
[419258839,1775068246368,-603.0,0.00015795,2]
[419258840,1775068246379,-13403.78715689,0.00015795,2]
[419258841,1775068246409,-700.0,8.529e-05,2]
[419258842,1775068246418,-2491.94762648,0.00015795,2]
[419258843,1775068246429,-26769.89884472,0.00015795,2]
[419258850,1775069168959,1910.0,7.932e-05,2]
[419258851,1775069232264,759.18,7.254e-05,2]
[419258852,1775069428261,153.67,6.725e-05,2]
[419258853,1775069428478,153.67,7.145e-05,2]
[419258854,1775069428682,153.67,7.565e-05,2]
[419258855,1775069428886,153.67,7.986e-05,2]
[419258873,1775069433486,-153.67,8.406e-05,2]
[419258874,1775069433495,-1330.0,8.552e-05,2]
[419258875,1775069433505,-250.0,8.679e-05,2]
[419258876,1775069433514,-209.79146822,8.807e-05,2]
[419258877,1775069433523,-153.67,8.826e-05,2]
[419258878,1775069433532,-250.0,9.083e-05,2]
[419258879,1775069433542,-98.81941022,9.247e-05,2]
[419258880,1775069433553,-54.85058978,9.247e-05,2]
[419258881,1775069433562,-1088.04,9.35e-05,2]
[419258882,1775069433572,-250.0,9.407e-05,2]
[419258883,1775069433581,-150.0,9.5e-05,2]
[419258884,1775069433590,-153.67,9.667e-05,2]
[419258885,1775069433600,-300.0,9.988e-05,2]
[419258886,1775069433610,-243.0,9.989e-05,2]
[419258887,1775069433619,-65.8742438,9.989e-05,2]
[419258888,1775069433632,-177.1257562,9.989e-05,2]
[419258889,1775069433641,-135.5742438,9.989e-05,2]
[419258890,1775069433699,-107.4257562,9.989e-05,2]
[419258891,1775069433708,-243.0,9.989e-05,2]
[419258892,1775069433718,-85.14808939,9.989e-05,2]
[419258893,1775069433730,-157.85191061,9.989e-05,2]
[419258894,1775069433740,-243.0,9.989e-05,2]
[419258895,1775069433749,-243.0,9.989e-05,2]
[419258896,1775069433759,-243.0,9.989e-05,2]
[419258897,1775069433769,-243.0,9.989e-05,2]
[419258898,1775069433778,-500.0,9.99e-05,2]
[419258899,1775069433788,-500.0,9.99e-05,2]
[419258900,1775069433797,-153.67,0.00010087,2]
[419258901,1775069433807,-151.0,0.00010094,2]
[419258902,1775069433816,-14043.0,0.000105,2]
[419258903,1775069433827,-153.67,0.00010508,2]
[419258904,1775069433836,-504.51019122,0.00010538,2]
[419258905,1775069433846,-5534.0,0.000107,3]
[419258906,1775069433855,-500.0,0.00010849,2]
[419258907,1775069433864,-191.9754,0.000109,7]
[419258908,1775069433873,-1108.2308754,0.000109,5]
[419258909,1775069433898,-410.6584033,0.000109,5]
[419258911,1775069437811,-1335.81767114,0.000109,5]
[419258912,1775069437823,-2322.17336648,0.000109,5]
[419258913,1775069438025,-357.11968368,0.000109,5]
[419258914,1775069438036,-1981.05,0.00011507,2]
[419258915,1775069438048,-6712.45,0.00012968,2]
[419258916,1775069438060,-5124.28031632,0.00012972,2]
[419258950,1775069440020,-383.45408857,0.00012972,2]
[419258951,1775069440034,-3722.67559511,0.00012972,2]
[419258952,1775069440045,-1852.42,0.0001302,2]
[419258953,1775069440056,-510.0,0.00013111,2]
[419258954,1775069440066,-200.0,0.00013699,2]
[419258955,1775069440077,-150.0,0.000141,2]
[419258956,1775069440088,-2000.0,0.000142,2]
[419258957,1775069440099,-535.71,0.00014814,2]
[419258958,1775069440110,-3240.0,0.00014857,2]
[419258959,1775069440122,-499.0,0.00014862,2]
[419258960,1775069440136,-499.0,0.00014862,2]
[419258961,1775069440146,-499.0,0.00014862,2]
[419258962,1775069440158,-499.0,0.00014862,2]
[419258963,1775069440169,-499.0,0.00014862,2]
[419258964,1775069440180,-499.0,0.00014862,2]
[419258965,1775069440191,-499.0,0.00014862,2]
[419258966,1775069440201,-499.0,0.00014862,2]
[419258967,1775069440212,-499.0,0.00014862,2]
[419258968,1775069440222,-499.0,0.00014862,2]
[419258969,1775069440233,-499.0,0.00014862,2]
[419258970,1775069440243,-499.0,0.00014862,2]
[419258971,1775069440255,-499.0,0.00014862,2]
[419258972,1775069440265,-499.0,0.00014862,2]
[419258973,1775069440276,-499.0,0.00014862,2]
[419258974,1775069440287,-499.0,0.00014862,2]
[419258975,1775069440297,-499.0,0.00014862,2]
[419258976,1775069440308,-499.0,0.00014862,2]
[419258977,1775069440318,-499.0,0.00014862,2]
[419258978,1775069440329,-499.0,0.00014862,2]
[419258979,1775069440340,-499.0,0.00014862,2]
[419258980,1775069440350,-499.0,0.00014862,2]
[419258981,1775069440361,-499.0,0.00014862,2]
[419258982,1775069440371,-518.83123575,0.00014862,2]
[419258983,1775069440382,-2537.97,0.00014945,2]
[419258984,1775069440392,-200.0,0.00015089,2]
[419258985,1775069440403,-500.0,0.00015089,2]
[419258986,1775069440414,-500.0,0.00015089,2]
[419258987,1775069440425,-500.0,0.00015089,2]
[419258988,1775069440436,-500.0,0.00015089,2]
[419258989,1775069440447,-500.0,0.00015089,2]
[419258990,1775069440458,-151.0,0.00015089,2]
[419258991,1775069440468,-500.0,0.00015089,2]
[419258992,1775069440479,-500.0,0.00015089,2]
[419258993,1775069440489,-500.0,0.00015089,2]
[419258994,1775069440500,-500.0,0.00015089,2]
[419258995,1775069440510,-500.0,0.00015089,2]
[419258996,1775069440521,-500.0,0.00015089,2]
[419258997,1775069440531,-500.0,0.00015089,2]
[419258998,1775069440541,-500.0,0.00015089,2]
[419258999,1775069440551,-174.61919141,0.00015089,2]
[419259000,1775069440562,-743.50770149,0.00015089,2]
[419259001,1775069440572,-350.0,0.00015115,2]
[419259002,1775069440584,-500.0,0.00015144,2]
[419259003,1775069440594,-151.0,0.00015144,2]
[419259004,1775069440605,-500.0,0.00015199,2]
[419259005,1775069440615,-151.0,0.00015199,2]
[419259006,1775069440626,-500.0,0.00015254,2]
[419259007,1775069440636,-151.0,0.00015254,2]
[419259008,1775069440647,-160.0,0.00015277,2]
[419259009,1775069440657,-200.0,0.000153,5]
[419259010,1775069440668,-191.9585,0.000153,7]
[419259011,1775069440679,-500.0,0.00015309,2]
[419259012,1775069440689,-151.0,0.00015309,2]
[419259013,1775069440700,-4216.0,0.00015363,2]
[419259014,1775069440711,-1173.0,0.00015363,2]
[419259015,1775069440724,-507.0,0.00015363,2]
[419259016,1775069440734,-388.0,0.00015363,2]
[419259017,1775069440745,-153.0,0.00015363,2]
[419259018,1775069440756,-933.0,0.00015363,2]
[419259019,1775069440767,-1338.0,0.00015363,2]
[419259020,1775069440778,-500.0,0.00015364,2]
[419259021,1775069440789,-151.0,0.00015364,2]
[419259022,1775069440801,-500.0,0.000154,5]
[419259023,1775069440812,-500.0,0.00015419,2]
[419259024,1775069440823,-151.0,0.00015419,2]
[419259025,1775069440835,-500.0,0.00015474,2]
[419259026,1775069440845,-151.0,0.00015474,2]
[419259027,1775069440858,-800.0,0.000155,5]
[419259028,1775069440868,-535.06,0.00015521,2]
[419259029,1775069440879,-500.0,0.00015529,2]
[419259030,1775069440890,-151.0,0.00015529,2]
[419259031,1775069440900,-160.167404,0.00015582,7]
[419259032,1775069440911,-500.0,0.00015584,2]
[419259033,1775069440921,-151.0,0.00015584,2]
[419259034,1775069440932,-15333.5471,0.00015586,2]
[419259035,1775069440943,-1100.0,0.000156,5]
[419259036,1775069440953,-350.0,0.00015616,2]
[419259037,1775069440964,-200.0,0.00015637,2]
[419259038,1775069440974,-181.08010149,0.00015637,2]
[419259039,1775069440996,-771.01748645,0.00015637,2]
[419259040,1775069441010,-500.0,0.00015639,2]
[419259041,1775069441022,-182.46756303,0.00015639,2]
[419259042,1775069441034,-518.0741,0.00015673,2]
[419259043,1775069441046,-1092.87272468,0.00015673,2]
[419259044,1775069441057,-206.465793,0.00015679,7]
[419259045,1775069441069,-500.0,0.00015694,2]
[419259046,1775069441080,-1256.80567645,0.00015695,2]
[419259047,1775069441091,-1000.0,0.00015695,2]
[419259048,1775069441103,-1300.27898027,0.000157,2]
[419259049,1775069441114,-1400.0,0.000157,5]
[419259050,1775069441126,-187.755,0.00015708,2]
[419259051,1775069441138,-2508.168,0.00015708,2]
[419259052,1775069441149,-700.0,0.00015715,2]
[419259053,1775069441160,-1256.80567638,0.00015718,2]
[419259054,1775069441171,-1256.80567638,0.00015741,2]
[419259055,1775069441182,-1256.80567638,0.00015763,2]
[419259056,1775069441193,-151.0,0.0001577,2]
[419259057,1775069441206,-266.96937774,0.00015772,2]
[419259058,1775069441222,-233.03062226,0.00015772,2]
[419259059,1775069441233,-139.30986803,0.00015772,2]
[419259060,1775069441254,-60.69013197,0.00015772,2]
[419259061,1775069441265,-75681.0907314,0.00015773,2]
[419259062,1775069441276,-10529.9754428,0.00015773,2]
[419259063,1775069441287,-16115.8297451,0.00015773,2]
[419259064,1775069441298,-1047.523542,0.00015773,2]
[419259065,1775069441309,-11458.1556867,0.00015773,2]
[419259066,1775069441320,-80195.7387617,0.00015773,2]
[419259067,1775069441331,-151.0,0.00015773,2]
[419259068,1775069441342,-151.0,0.00015773,2]
[419259069,1775069441353,-151.0,0.00015773,2]
[419259070,1775069441364,-151.0,0.00015773,2]
[419259071,1775069441375,-500.0,0.00015775,2]
[419259072,1775069441385,-1256.80567638,0.00015786,2]
[419259073,1775069441396,-159.0,0.00015795,3]
[419259074,1775069441406,-873.404806,0.00015795,2]
[419259075,1775069441417,-943.558436,0.00015795,2]
[419259076,1775069441429,-200.0,0.00015795,2]
[419259077,1775069441441,-200.0,0.00015795,2]
[419259078,1775069441451,-535.06,0.00015795,2]
[419259079,1775069441462,-200.0,0.00015795,2]
[419259080,1775069441479,-1524.0,0.00015795,2]
[419259081,1775069441490,-156.0,0.00015795,2]
[419259082,1775069441502,-1524.0,0.00015795,2]
[419259083,1775069441514,-195.14340356,0.00015795,2]
[419259084,1775069441525,-152.0,0.00015795,2]
[419259085,1775069441537,-1524.0,0.00015795,2]
[419259086,1775069441549,-152.0,0.00015795,2]
[419259087,1775069441561,-1524.0,0.00015795,2]